fUST/lending_fUST_20240818
["ID","MTS","AMOUNT","RATE_DAILY","PERIOD"]
[335218033,1723987854265,-500.0,0.00016712,2]
[335218034,1723987854276,-500.0,0.00016712,2]
[335218035,1723987854286,-500.0,0.00016712,2]
[335218036,1723987854299,-500.0,0.00016712,2]
[335218037,1723987854313,-500.0,0.00016712,2]
[335218038,1723987854324,-814.14,0.00016712,2]
[335218039,1723987854335,-880.39,0.00016712,2]
[335218040,1723987854346,-500.0,0.00016712,2]
[335218041,1723987854356,-745.57,0.00016712,2]
[335218042,1723987854367,-500.0,0.00016712,2]
[335218043,1723987854379,-500.0,0.00016712,2]
[335218044,1723987854390,-757.9,0.00016712,2]
[335218045,1723987854400,-500.0,0.00016712,2]
[335218046,1723987854409,-200.0,0.00016773,2]
[335218047,1723987854420,-200.0,0.00016773,2]
[335218048,1723987854432,-170.14444841,0.00016773,2]
[335218049,1723987854442,-1000.0,0.00016923,2]
[335218050,1723987854452,-1000.0,0.00016944,2]
[335218051,1723987854466,-782.46103051,0.00016968,2]
[335218052,1723987854490,-200.0,0.00016973,2]
[335218053,1723987854510,-1000.0,0.00016984,2]
[335218054,1723987854534,-150.01,0.00016985,2]
[335218055,1723987854558,-3246.18840817,0.00016985,2]
[335218056,1723987854576,-151.0,0.00016985,2]
[335218057,1723987854595,-225.41836,0.00016986,2]
[335218058,1723987854610,-500.0,0.00016986,2]
[335218059,1723987854628,-500.0,0.00016986,2]
[335218060,1723987854648,-676.41,0.00016986,2]
[335218061,1723987854667,-500.0,0.00016986,2]
[335218062,1723987854682,-500.0,0.00016986,2]
[335218063,1723987854702,-500.0,0.00016986,2]
[335218064,1723987854719,-571.39,0.00016986,2]
[335218065,1723987854735,-514.58,0.00016986,2]
[335218066,1723987854750,-500.0,0.00016986,2]
[335218067,1723987854765,-500.0,0.00016986,2]
[335218068,1723987854780,-500.0,0.00016986,2]
[335218069,1723987854797,-536.03048308,0.00016986,2]
[335218070,1723987854811,-500.0,0.00016986,2]
[335218071,1723987854826,-500.0,0.00016986,2]
[335218072,1723987854844,-597.91999049,0.00016986,2]
[335218073,1723987854859,-500.0,0.00016986,2]
[335218074,1723987854876,-500.0,0.00016986,2]
[335218075,1723987854892,-660.33,0.00016986,2]
[335218076,1723987854908,-674.77,0.00016986,2]
[335218077,1723987854924,-500.0,0.00016986,2]
[335218078,1723987854940,-500.0,0.00016986,2]
[335218079,1723987854956,-500.0,0.00016986,2]
[335218080,1723987854971,-500.0,0.00016986,2]
[335218081,1723987854986,-750.74,0.00016986,2]
[335218082,1723987855001,-500.0,0.00016986,2]
[335218083,1723987855015,-500.0,0.00016986,2]
[335218084,1723987855032,-500.0,0.00016986,2]
[335218085,1723987855046,-538.45,0.00016986,2]
[335218086,1723987855061,-500.0,0.00016986,2]
[335218087,1723987855077,-500.0,0.00016986,2]
[335218088,1723987855092,-515.51,0.00016986,2]
[335218089,1723987855106,-756.75,0.00016986,2]
[335218090,1723987855121,-500.0,0.00016986,2]
[335218091,1723987855136,-500.0,0.00016986,2]
[335218092,1723987855150,-500.0,0.00016986,2]
[335218093,1723987855165,-383.34210581,0.00016986,2]
[335218094,1723987855180,-1355.37,0.00016986,2]
[335218095,1723987855195,-500.0,0.00016986,2]
[335218096,1723987855209,-500.0,0.00016986,2]
[335218097,1723987855224,-500.0,0.00016986,2]
[335218098,1723987855240,-500.0,0.00016986,2]
[335218099,1723987855250,-500.0,0.00016986,2]
[335218100,1723987855261,-168.93144031,0.00016986,2]
[335218101,1723987855272,-500.0,0.00016986,2]
[335218102,1723987855284,-500.0,0.00016986,2]
[335218103,1723987855295,-522.37444784,0.00016986,2]
[335218104,1723987855311,-500.0,0.00016986,2]
[335218105,1723987855325,-500.0,0.00016986,2]
[335218106,1723987855336,-155.97998199,0.00016986,2]
[335218107,1723987855348,-500.0,0.00016986,2]
[335218108,1723987855358,-2005.0,0.00016986,10]
[335218109,1723987855369,-500.0,0.00016986,2]
[335218110,1723987855380,-500.0,0.00016986,2]
[335218111,1723987855392,-200.0,0.00016986,2]
[335218112,1723987855589,-500.0,0.00016986,2]
[335218113,1723987855609,-500.0,0.00016986,2]
[335218114,1723987855620,-671.04,0.00016986,2]
[335218115,1723987855630,-500.0,0.00016986,2]
[335218116,1723987855639,-500.0,0.00016986,2]
[335218117,1723987855649,-500.0,0.00016986,2]
[335218118,1723987855658,-500.0,0.00016986,2]
[335218119,1723987855668,-500.0,0.00016986,2]
[335218120,1723987855677,-500.0,0.00016986,2]
[335218121,1723987855686,-500.0,0.00016986,2]
[335218122,1723987855695,-500.0,0.00016986,2]
[335218123,1723987855705,-500.0,0.00016986,2]
[335218124,1723987855714,-500.0,0.00016986,2]
[335218125,1723987855724,-500.0,0.00016986,2]
[335218126,1723987855734,-500.0,0.00016986,2]
[335218127,1723987855744,-500.0,0.00016986,2]
[335218128,1723987855753,-500.0,0.00016986,2]
[335218129,1723987855763,-500.0,0.00016986,2]
[335218130,1723987855773,-500.0,0.00016986,2]
[335218131,1723987855782,-408.0,0.00016986,2]
[335218132,1723987855791,-500.0,0.00016986,2]
[335218133,1723987855800,-500.0,0.00016986,2]
[335218134,1723987855810,-620.86,0.00016986,2]
[335218135,1723987855825,-579.51,0.00016986,2]
[335218136,1723987855836,-651.35,0.00016986,2]
[335218137,1723987855845,-500.0,0.00016986,2]
[335218138,1723987855854,-500.0,0.00016986,2]
[335218139,1723987855863,-506.11519574,0.00016986,2]
[335218140,1723987855872,-500.0,0.00016986,2]
[335218141,1723987855882,-500.0,0.00016986,2]
[335218142,1723987855891,-834.08,0.00016986,2]
[335218143,1723987855901,-500.0,0.00016986,2]
[335218144,1723987855910,-500.0,0.00016986,2]
[335218145,1723987855922,-426.90354338,0.00016986,2]
[335218146,1723987855933,-500.0,0.00016986,2]
[335218147,1723987855943,-500.0,0.00016986,2]
[335218148,1723987855956,-500.0,0.00016986,2]
[335218149,1723987855966,-500.0,0.00016986,2]
[335218150,1723987855976,-500.0,0.00016986,2]
[335218151,1723987855986,-500.0,0.00016986,2]
[335218152,1723987855996,-500.0,0.00016986,2]
[335218153,1723987856007,-500.0,0.00016986,2]
[335218154,1723987856016,-500.0,0.00016986,2]
[335218155,1723987856027,-500.0,0.00016986,2]
[335218156,1723987856037,-538.46934592,0.00016986,2]
[335218157,1723987856047,-598.23,0.00016986,2]
[335218158,1723987856058,-500.0,0.00016986,2]
[335218159,1723987856068,-500.0,0.00016986,2]
[335218160,1723987856078,-500.0,0.00016986,2]
[335218161,1723987856088,-500.0,0.00016986,2]
[335218162,1723987856099,-694.6,0.00016986,2]
[335218163,1723987856110,-500.0,0.00016986,2]
[335218164,1723987856120,-500.0,0.00016986,2]
[335218165,1723987856130,-500.0,0.00016986,2]
[335218166,1723987856139,-571.47,0.00016986,2]
[335218167,1723987856149,-500.0,0.00016986,2]
[335218168,1723987856161,-500.0,0.00016986,2]
[335218169,1723987856171,-1035.93,0.00016986,2]
[335218170,1723987856183,-500.0,0.00016986,2]
[335218171,1723987856195,-509.52708018,0.00016986,2]
[335218172,1723987856205,-500.0,0.00016986,2]
[335218173,1723987856216,-725.25,0.00016986,2]
[335218174,1723987856226,-503.92445131,0.00016986,2]
[335218175,1723987856235,-500.0,0.00016986,2]
[335218176,1723987856246,-505.17290861,0.00016986,2]
[335218177,1723987856257,-500.0,0.00016986,2]
[335218178,1723987856269,-500.0,0.00016986,2]
[335218179,1723987856281,-1065.61,0.00016986,2]
[335218180,1723987856291,-162.77968979,0.00016986,2]
[335218181,1723987856303,-500.0,0.00016986,2]
[335218182,1723987856318,-500.0,0.00016986,2]
[335218183,1723987856328,-500.0,0.00016986,2]
[335218184,1723987856338,-500.0,0.00016986,2]
[335218185,1723987856348,-688.4,0.00016986,2]
[335218186,1723987856360,-500.0,0.00016986,2]
[335218187,1723987856370,-686.8,0.00016986,2]
[335218188,1723987856381,-535.61701437,0.00016986,2]
[335218189,1723987856392,-501.98017459,0.00016986,2]
[335218190,1723987856402,-500.0,0.00016986,2]
[335218191,1723987856412,-500.0,0.00016986,2]
[335218192,1723987856422,-500.0,0.00016986,2]
[335218193,1723987856432,-500.0,0.00016986,2]
[335218194,1723987856442,-500.0,0.00016986,2]
[335218195,1723987856453,-500.0,0.00016986,2]
[335218196,1723987856463,-302.60388788,0.00016986,2]
[335218197,1723987856475,-390.758708,0.00016986,2]
[335218198,1723987856485,-390.758708,0.00016986,2]
[335218199,1723987856496,-500.0,0.00016986,2]
[335218200,1723987856506,-645.38,0.00016986,2]
[335218201,1723987856516,-500.0,0.00016986,2]
[335218202,1723987856527,-500.0,0.00016986,2]
[335218203,1723987856538,-725.37,0.00016986,2]
[335218204,1723987856548,-500.0,0.00016986,2]
[335218205,1723987856557,-505.41433615,0.00016986,2]
[335218206,1723987856568,-500.0,0.00016986,2]
[335218207,1723987856577,-500.0,0.00016986,2]
[335218208,1723987856586,-500.0,0.00016986,2]
[335218209,1723987856596,-869.12,0.00016986,2]
[335218210,1723987856605,-502.76378911,0.00016986,2]
[335218211,1723987856616,-500.0,0.00016986,2]
[335218212,1723987856627,-500.0,0.00016986,2]
[335218213,1723987856637,-509.93065754,0.00016986,2]
[335218214,1723987856647,-509.54141711,0.00016986,2]
[335218215,1723987856658,-518.86573632,0.00016986,2]
[335218216,1723987856670,-500.0,0.00016986,2]
[335218217,1723987856680,-500.0,0.00016986,2]
[335218218,1723987856691,-500.0,0.00016986,2]
[335218219,1723987856701,-1392.6,0.00016986,2]
[335218220,1723987856711,-549.8,0.00016986,2]
[335218221,1723987856724,-514.40417949,0.00016986,2]
[335218222,1723987856735,-614.96400603,0.00016986,2]
[335218223,1723987856744,-500.0,0.00016986,2]
[335218224,1723987856755,-500.0,0.00016986,2]
[335218225,1723987856765,-500.0,0.00016986,2]
[335218226,1723987856775,-500.0,0.00016986,2]
[335218227,1723987856786,-504.35897481,0.00016986,2]
[335218228,1723987856796,-500.0,0.00016986,2]
[335218229,1723987856806,-500.0,0.00016986,2]
[335218230,1723987856817,-623.23,0.00016986,2]
[335218231,1723987856829,-500.0,0.00016986,2]
[335218232,1723987856840,-500.0,0.00016986,2]
[335218233,1723987856856,-500.0,0.00016986,2]
[335218234,1723987856867,-500.0,0.00016986,2]
[335218235,1723987856876,-500.0,0.00016986,2]
[335218236,1723987856886,-500.0,0.00016986,2]
[335218237,1723987856896,-500.0,0.00016986,2]
[335218238,1723987856905,-608.45,0.00016986,2]
[335218239,1723987856917,-500.0,0.00016986,2]
[335218240,1723987856927,-708.08,0.00016986,2]
[335218241,1723987856940,-593.36,0.00016986,2]
[335218242,1723987856949,-500.0,0.00016986,2]
[335218243,1723987856960,-690.29,0.00016986,2]
[335218244,1723987856970,-500.0,0.00016986,2]
[335218245,1723987856980,-1034.16,0.00016986,2]
[335218246,1723987856990,-562.7467592,0.00016986,2]
[335218247,1723987857000,-500.0,0.00016986,2]
[335218248,1723987857011,-500.0,0.00016986,2]
[335218249,1723987857021,-500.0,0.00016986,2]
[335218250,1723987857033,-500.0,0.00016986,2]
[335218251,1723987857044,-500.0,0.00016986,2]
[335218252,1723987857055,-505.91791522,0.00016986,2]
[335218253,1723987857065,-500.0,0.00016986,2]
[335218254,1723987857075,-500.0,0.00016986,2]
[335218255,1723987857088,-526.92,0.00016986,2]
[335218256,1723987857098,-655.73,0.00016986,2]
[335218257,1723987857109,-508.96875898,0.00016986,2]
[335218259,1723987857119,-500.0,0.00016986,2]
[335218260,1723987857130,-500.0,0.00016986,2]
[335218261,1723987857140,-509.1367831,0.00016986,2]
[335218262,1723987857151,-500.0,0.00016986,2]
[335218263,1723987857161,-743.79,0.00016986,2]
[335218264,1723987857171,-506.50095845,0.00016986,2]
[335218265,1723987857182,-500.0,0.00016986,2]
[335218266,1723987857194,-500.0,0.00016986,2]
[335218267,1723987857204,-500.0,0.00016986,2]
[335218268,1723987857214,-500.0,0.00016986,2]
[335218269,1723987857225,-500.0,0.00016986,2]
[335218270,1723987857234,-752.56,0.00016986,2]
[335218271,1723987857244,-500.0,0.00016986,2]
[335218272,1723987857253,-500.0,0.00016986,2]
[335218273,1723987857266,-732.89,0.00016986,2]
[335218274,1723987857276,-500.0,0.00016986,2]
[335218275,1723987857289,-151.0,0.00016986,2]
[335218276,1723987857300,-151.0,0.00016986,2]
[335218277,1723987857314,-500.0,0.00016986,2]
[335218278,1723987857323,-500.0,0.00016986,2]
[335218279,1723987857333,-151.0,0.00016986,2]
[335218280,1723987857342,-500.0,0.00016986,2]
[335218281,1723987857353,-500.0,0.00016986,2]
[335218282,1723987857362,-500.0,0.00016986,2]
[335218283,1723987857371,-500.0,0.00016986,2]
[335218284,1723987857384,-500.0,0.00016986,2]
[335218285,1723987857394,-506.69120468,0.00016986,2]
[335218286,1723987857403,-500.0,0.00016986,2]
[335218287,1723987857414,-500.0,0.00016986,2]
[335218288,1723987857427,-500.0,0.00016986,2]
[335218289,1723987857439,-608.88,0.00016986,2]
[335218290,1723987857451,-500.0,0.00016986,2]
[335218291,1723987857460,-372.84039131,0.00016986,2]
[335218292,1723987857471,-504.4466559,0.00016986,2]
[335218293,1723987857481,-500.0,0.00016986,2]
[335218294,1723987857493,-500.0,0.00016986,2]
[335218295,1723987857504,-500.0,0.00016986,2]
[335218296,1723987857513,-500.0,0.00016986,2]
[335218297,1723987857524,-500.0,0.00016986,2]
[335218298,1723987857533,-500.0,0.00016986,2]
[335218299,1723987857543,-500.0,0.00016986,2]
[335218300,1723987857553,-500.0,0.00016986,2]
[335218301,1723987857563,-500.0,0.00016986,2]
[335218302,1723987857574,-500.0,0.00016986,2]
[335218303,1723987857584,-530.35646287,0.00016986,2]
[335218304,1723987857595,-500.0,0.00016986,2]
[335218305,1723987857606,-512.66634212,0.00016986,2]
[335218306,1723987857618,-500.0,0.00016986,2]
[335218307,1723987857630,-500.0,0.00016986,2]
[335218308,1723987857640,-500.0,0.00016986,2]
[335218309,1723987857651,-500.0,0.00016986,2]
[335218310,1723987857661,-571.99,0.00016986,2]
[335218311,1723987857671,-500.0,0.00016986,2]
[335218312,1723987857682,-7337.88,0.00016986,2]
[335218313,1723987857693,-520.26,0.00016986,2]
[335218314,1723987857705,-500.0,0.00016986,2]
[335218315,1723987857715,-500.0,0.00016986,2]
[335218316,1723987857726,-500.0,0.00016986,2]
[335218317,1723987857738,-500.0,0.00016986,2]
[335218318,1723987857749,-500.0,0.00016986,2]
[335218319,1723987857759,-500.0,0.00016986,2]
[335218320,1723987857771,-500.0,0.00016986,2]
[335218321,1723987857781,-500.0,0.00016986,2]
[335218322,1723987857792,-500.0,0.00016986,2]
[335218323,1723987857801,-500.0,0.00016986,2]
[335218324,1723987857811,-607.95,0.00016986,2]
[335218325,1723987857821,-840.77,0.00016986,2]
[335218326,1723987857830,-500.0,0.00016986,2]
[335218327,1723987857839,-1000.0,0.00016986,2]
[335218328,1723987857849,-510.4719116,0.00016986,2]
[335218329,1723987857858,-500.0,0.00016986,2]
[335218330,1723987857867,-500.0,0.00016986,2]
[335218331,1723987857877,-500.0,0.00016986,2]
[335218332,1723987857887,-500.0,0.00016986,2]
[335218333,1723987857896,-500.0,0.00016986,2]
[335218334,1723987857906,-500.0,0.00016986,2]
[335218335,1723987857917,-943.8,0.00016986,2]
[335218336,1723987857927,-501.542352,0.00016986,2]
[335218337,1723987857938,-500.0,0.00016986,2]
[335218338,1723987857948,-500.0,0.00016986,2]
[335218339,1723987857961,-500.0,0.00016986,2]
[335218340,1723987857971,-890.54,0.00016986,2]
[335218341,1723987857982,-500.0,0.00016986,2]
[335218342,1723987857993,-509.0240187,0.00016986,2]
[335218343,1723987858003,-500.0,0.00016986,2]
[335218344,1723987858013,-500.0,0.00016986,2]
[335218345,1723987858022,-500.0,0.00016986,2]
[335218346,1723987858034,-500.0,0.00016986,2]
[335218347,1723987858045,-510.04064096,0.00016986,2]
[335218348,1723987858056,-500.0,0.00016986,2]
[335218349,1723987858067,-569.70870302,0.00016986,2]
[335218350,1723987858079,-505.16786915,0.00016986,2]
[335218351,1723987858090,-500.0,0.00016986,2]
[335218352,1723987858100,-500.0,0.00016986,2]
[335218353,1723987858110,-829.06,0.00016986,2]
[335218354,1723987858120,-500.0,0.00016986,2]
[335218355,1723987858129,-500.0,0.00016986,2]
[335218356,1723987858139,-555.96616486,0.00016986,2]
[335218357,1723987858149,-500.0,0.00016986,2]
[335218358,1723987858158,-500.0,0.00016986,2]
[335218359,1723987858167,-500.0,0.00016986,2]
[335218360,1723987858176,-500.0,0.00016986,2]
[335218361,1723987858186,-500.0,0.00016986,2]
[335218362,1723987858197,-500.0,0.00016986,2]
[335218363,1723987858206,-1397.78,0.00016986,2]
[335218364,1723987858216,-500.0,0.00016986,2]
[335218365,1723987858226,-500.0,0.00016986,2]
[335218366,1723987858235,-674.09,0.00016986,2]
[335218367,1723987858244,-500.0,0.00016986,2]
[335218368,1723987858254,-500.0,0.00016986,2]
[335218369,1723987858264,-507.9909828,0.00016986,2]
[335218370,1723987858367,-500.0,0.00016986,2]
[335218371,1723987858391,-174.00941654,0.00016986,2]
[335218372,1723987858401,-500.0,0.00016986,2]
[335218373,1723987858410,-1315.67,0.00016986,2]
[335218374,1723987858420,-505.24686272,0.00016986,2]
[335218375,1723987858429,-500.0,0.00016986,2]
[335218376,1723987858439,-500.0,0.00016986,2]
[335218377,1723987858449,-500.0,0.00016986,2]
[335218378,1723987858459,-500.0,0.00016986,2]
[335218379,1723987858469,-505.50000001,0.00016986,2]
[335218380,1723987858480,-1132.64,0.00016986,2]
[335218381,1723987858491,-831.79,0.00016986,2]
[335218382,1723987858502,-500.0,0.00016986,2]
[335218383,1723987858513,-500.0,0.00016986,2]
[335218384,1723987858524,-500.0,0.00016986,2]
[335218385,1723987858535,-500.0,0.00016986,2]
[335218386,1723987858545,-500.0,0.00016986,2]
[335218387,1723987858556,-500.0,0.00016986,2]
[335218388,1723987858567,-500.0,0.00016986,2]
[335218389,1723987858578,-170.13990363,0.00016986,2]
[335218390,1723987858589,-618.92,0.00016986,2]
[335218391,1723987858599,-500.0,0.00016986,2]
[335218392,1723987858611,-500.0,0.00016986,2]
[335218393,1723987858622,-2708.0,0.00016986,2]
[335218394,1723987858632,-1058.75,0.00016986,2]
[335218395,1723987858642,-500.0,0.00016986,2]
[335218396,1723987858652,-500.0,0.00016986,2]
[335218397,1723987858662,-502.86987395,0.00016986,2]
[335218398,1723987858673,-500.0,0.00016986,2]
[335218399,1723987858682,-727.38,0.00016986,2]
[335218400,1723987858692,-1207.97,0.00016986,2]
[335218401,1723987858701,-1226.39,0.00016986,2]
[335218402,1723987858712,-500.0,0.00016986,2]
[335218403,1723987858723,-506.64087137,0.00016986,2]
[335218404,1723987858735,-1045.59,0.00016986,2]
[335218405,1723987858744,-500.0,0.00016986,2]
[335218406,1723987858754,-500.0,0.00016986,2]
[335218407,1723987858764,-500.0,0.00016986,2]
[335218408,1723987858776,-534.19,0.00016986,2]
[335218409,1723987858786,-505.43564784,0.00016986,2]
[335218410,1723987858796,-500.0,0.00016986,2]
[335218411,1723987858806,-507.84303351,0.00016986,2]
[335218412,1723987858817,-500.0,0.00016986,2]
[335218413,1723987858827,-685.54,0.00016986,2]
[335218414,1723987858837,-500.0,0.00016986,2]
[335218415,1723987858846,-455.77223819,0.00016986,2]
[335218416,1723987859927,-156.84074619,0.00013971,2]
[335218417,1723987859938,-183.935745,0.00014247,2]
[335218418,1723987859948,-500.0,0.00016438,2]
[335218419,1723987859958,-500.0,0.00016438,2]
[335218420,1723987859967,-1157.22,0.00016438,2]
[335218421,1723987859979,-500.0,0.00016438,2]
[335218422,1723987859990,-1157.22,0.00016712,2]
[335218423,1723987859999,-44.22776181,0.00016986,2]
[335218424,1723987860009,-500.0,0.00016986,2]
[335218425,1723987860020,-607.45,0.00016986,2]
[335218426,1723987860030,-500.0,0.00016986,2]
[335218427,1723987860040,-500.0,0.00016986,2]
[335218428,1723987860050,-500.0,0.00016986,2]
[335218429,1723987860059,-500.0,0.00016986,2]
[335218430,1723987860069,-1065.72,0.00016986,2]
[335218431,1723987860079,-592.28,0.00016986,2]
[335218432,1723987860089,-500.0,0.00016986,2]
[335218433,1723987860099,-1932.23,0.00016986,2]
[335218434,1723987860109,-524.89954119,0.00016986,2]
[335218435,1723987860118,-91.17620581,0.00016986,2]
[335218436,1723987860267,357.33,0.000168,10]
[335218438,1723987899592,166.4,5.479e-05,2]
[335218443,1723987946399,601.6533504,6.641e-05,2]
[335218445,1723987946837,154.76012181,6.641e-05,2]
[335218446,1723987947054,433.28919733,6.641e-05,2]
[335218447,1723987948228,154.71377951,6.641e-05,2]
[335218448,1723987951554,187.42362017,6.641e-05,2]
[335218449,1723987954684,156.65353163,6.641e-05,2]
[335218450,1723987955657,309.38127527,6.641e-05,2]
[335218451,1723987960712,154.71377951,6.641e-05,2]
[335218452,1723987964362,2005.0,0.00016438,10]
[335218453,1723987964608,2005.0,0.00016712,10]
[335218463,1723988196524,166.4,5.479e-05,2]
[335218477,1723988434042,542.94098629,6.641e-05,2]
[335218478,1723988461287,10000.0,0.000168,10]
[335218479,1723988477199,212.0,0.000168,10]
[335218481,1723988495133,166.4,5.479e-05,2]
[335218484,1723988633147,1765.67532584,6.641e-05,2]
[335218487,1723988694737,154.68290005,0.000168,10]
[335218501,1723988795343,166.4,5.479e-05,2]
[335218511,1723988817993,2005.0,0.00016438,10]
[335218512,1723988818270,2005.0,0.00016712,10]
[335218518,1723988835936,728.43490027,6.641e-05,2]
[335218528,1723988887905,-191.9731999,0.00010859,2]
[335218529,1723988887928,-300.0,0.00010875,2]
[335218530,1723988887950,-24900.0,0.00010876,2]
[335218531,1723988887972,-687.98,0.00010959,2]
[335218532,1723988887993,-205.64,0.00010959,2]
[335218533,1723988888013,-171.37,0.00010959,2]
[335218534,1723988888034,-856.87,0.00010959,2]
[335218535,1723988888056,-814.3171448,0.00011123,2]
[335218536,1723988888088,-166.960162,0.0001182,2]
[335218537,1723988888109,-166.960162,0.00011922,2]
[335218538,1723988888131,-420.0,0.00011962,2]
[335218539,1723988888153,-166.960162,0.00012025,2]
[335218540,1723988888175,-30950.9691693,0.0001212,2]
[335218603,1723989032047,-166.960162,0.00011923,2]
[335218605,1723989032058,-20943.84869662,0.00011987,2]
[335218607,1723989032070,-3797.03976238,0.0001211,2]
[335218609,1723989032082,-5967.887764,0.0001211,2]
[335218751,1723989038014,-30783.78964112,0.0001211,2]
[335218752,1723989038026,-8838.10257053,0.0001212,2]
[335218753,1723989038038,-166.960162,0.0001213,2]
[335218754,1723989038050,-166.960162,0.00012337,2]
[335218755,1723989038060,-166.960162,0.00012544,2]
[335218756,1723989038072,-2809.42739364,0.00012551,2]
[335218757,1723989038082,-2187.10767669,0.00012629,2]
[335218758,1723989038092,-2630.01967511,0.00012629,2]
[335218759,1723989038103,-687.12762806,0.0001267,2]
[335218760,1723989038113,-1612.67783737,0.00012779,2]
[335218761,1723989038123,-4269.25874988,0.00012782,2]
[335218762,1723989038132,-156.60209019,0.00012871,2]
[335218763,1723989038141,-779.97165007,0.00012886,2]
[335218764,1723989038150,-2946.47464139,0.000129,2]
[335218765,1723989038159,-211.16933419,0.00012934,2]
[335218766,1723989038168,-200.0,0.00012934,2]
[335218767,1723989038178,-155.07948823,0.00012971,2]
[335218768,1723989038187,-287.81203067,0.00012971,2]
[335218769,1723989038197,-569.37734184,0.00012971,2]
[335218770,1723989038206,-154.93824139,0.00012971,2]
[335218771,1723989038215,-304.14182412,0.00012971,2]
[335218772,1723989038225,-191.85387539,0.00012971,2]
[335218773,1723989038234,-156.84074619,0.00012985,2]
[335218774,1723989038244,-195.62347835,0.00012985,2]
[335218775,1723989038254,-155.96137292,0.00012985,2]
[335218776,1723989038263,-154.71377951,0.00012985,2]
[335218777,1723989038272,-533.92328189,0.00012985,2]
[335218778,1723989038282,-155.61854331,0.00012985,2]
[335218779,1723989038291,-154.80808241,0.00012985,2]
[335218780,1723989038301,-160.39523982,0.00012989,2]
[335218781,1723989038310,-154.77556307,0.00012989,2]
[335218782,1723989038319,-260.93351875,0.00012989,2]
[335218783,1723989038329,-155.16159397,0.00012991,2]
[335218784,1723989038339,-2519.17766649,0.00013,2]
[335218785,1723989038349,-687.12762802,0.00013587,2]
[335218786,1723989038359,-21948.84210533,0.00013697,2]
[335218787,1723989038368,-500.0,0.00013698,2]
[335218788,1723989038377,-337.79387813,0.00013698,2]
[335218789,1723989038387,-500.0,0.00013698,2]
[335218790,1723989038396,-500.0,0.00013698,2]
[335218791,1723989038405,-608.6856202,0.00013698,2]
[335218792,1723989038414,-500.0,0.00013698,2]
[335218793,1723989038424,-500.0,0.00013698,2]
[335218794,1723989038433,-500.0,0.00013698,2]
[335218795,1723989038443,-297.63953025,0.00013698,2]
[335218796,1723989038453,-273.476976,0.00013699,2]
[335218797,1723989038462,-3000.0,0.00013699,2]
[335218798,1723989038471,-174.738957,0.00014247,2]
[335218799,1723989038481,-687.12762802,0.00014504,2]
[335218800,1723989038491,-179.0098943,0.00014691,2]
[335218801,1723989038500,-154.92761544,0.00015,2]
[335218802,1723989038509,-2946.47464133,0.00015297,2]
[335218803,1723989038518,-40548.7171675,0.00015411,2]
[335218804,1723989038528,-687.12762802,0.00015421,2]
[335218805,1723989038538,-2000.0,0.00016228,2]
[335218806,1723989038549,-150.112236,0.000163,2]
[335218807,1723989038558,-40548.7171675,0.00016328,2]
[335218808,1723989038569,-687.12762802,0.00016338,2]